bitfinex/quotes_ETHUSD_20220227
["timestamp","ask_amount","ask_price","bid_price","bid_amount"]
[1645996561004,1.0,2585.6,2585.5,1.34750368]
[1645996561609,1.44617535,2586.4,2585.5,2.18850368]
[1645996561808,1.0,2586.4,2585.6,0.1545]
[1645996562006,0.25,2586.2,2585.6,0.00096]
[1645996562210,1.0,2586.1,2585.5,1.34750368]
[1645996562808,1.44617535,2585.9,2585.5,1.34750368]
[1645996563209,0.25,2586.2,2585.5,1.34750368]
[1645996563210,1.25,2586.2,2585.5,1.34750368]
[1645996563407,1.25,2586.2,2585.6,0.463]
[1645996563607,0.25,2586.2,2585.6,0.463]
[1645996564147,0.25,2586.2,2585.6,0.6176]
[1645996564447,1.69617535,2586.2,2586.0,1.21148818]
[1645996565348,1.69617535,2586.2,2585.7,0.00096]
[1645996565548,1.69617535,2586.2,2585.1,0.1545]
[1645996565549,1.44617535,2586.0,2585.1,0.1545]
[1645996565749,1.44617535,2585.2,2584.8,0.1547]
[1645996566057,0.25,2585.3,2584.7,2.9024163]
[1645996566254,0.25,2585.3,2584.9,1.29943615]
[1645996566255,1.44617535,2585.2,2584.9,1.29943615]
[1645996566554,1.25,2585.3,2584.9,1.29943615]
[1645996566754,0.25,2585.3,2584.9,2.14043615]
[1645996566954,0.25,2585.3,2584.9,1.76243615]
[1645996567155,0.25,2585.3,2584.4,0.00082501]
[1645996567156,1.44617535,2585.0,2584.4,0.00082501]
[1645996567360,1.0,2584.8,2584.4,0.00082501]
[1645996567757,1.0,2584.7,2584.4,0.00082501]
[1645996568201,1.44617535,2584.6,2584.5,1.20818099]
[1645996568603,1.44617535,2584.6,2584.4,0.00082501]
[1645996568807,2.44617535,2584.6,2584.4,0.00082501]
[1645996569005,1.0,2584.5,2584.4,0.00082501]
[1645996569205,2.0,2584.5,2584.4,0.00082501]
[1645996569706,1.378,2584.5,2583.7,0.00096]
[1645996569910,1.44617535,2583.8,2583.7,0.00096]
[1645996570207,1.44617535,2583.8,2583.4,0.63586138]
[1645996570408,0.25,2583.7,2583.4,0.63586138]
[1645996570710,0.25,2583.7,2583.2,0.00096]
[1645996570711,1.44617535,2583.5,2583.2,0.00096]
[1645996570909,1.44617535,2583.5,2582.1,0.463]
[1645996570910,10.878,2583.4,2582.1,0.463]
[1645996571110,10.878,2583.4,2582.1,0.9684669]
[1645996571111,1.44617535,2582.5,2582.1,0.9684669]
[1645996571309,1.44617535,2582.5,2581.8,4.87256]
[1645996571310,1.44617535,2582.5,2581.8,5.8095841]
[1645996571510,1.0,2582.3,2581.8,5.8095841]
[1645996571779,1.0,2582.3,2581.8,1.9370241]
[1645996571980,1.44617535,2582.3,2581.7,7.3]
[1645996572180,1.69617535,2582.4,2582.3,1.4980167]
[1645996572584,2.69617535,2582.4,2582.3,1.4980167]
[1645996572981,0.25,2582.4,2582.3,1.4980167]
[1645996573182,1.69617535,2582.4,2582.3,1.4980167]
[1645996573378,0.25,2582.4,2582.3,1.4980167]
[1645996574082,0.25,2582.7,2582.3,3.4346894]
[1645996574279,0.25,2582.7,2582.4,0.841]
[1645996574485,0.25,2582.7,2582.5,1.11954796]
[1645996574686,3.5,2584.5,2583.9,0.39984144]
[1645996574687,1.0,2584.2,2583.9,0.39984144]
[1645996574985,1.44617535,2584.1,2583.9,0.34984144]
[1645996575190,1.0,2584.0,2583.9,0.34984144]
[1645996575397,3.39617535,2584.0,2583.9,0.34984144]
[1645996575600,2.55087535,2584.0,2583.9,0.34984144]
[1645996575797,2.39617535,2584.0,2583.9,0.34984144]
[1645996575996,2.55087535,2584.0,2583.9,0.34984144]
[1645996576195,2.39617535,2584.0,2583.9,0.34984144]
[1645996576399,0.1547,2584.2,2583.9,0.34984144]
[1645996576400,1.0,2584.1,2583.9,0.34984144]
[1645996576596,0.25,2584.3,2583.9,0.34984144]
[1645996576597,1.0,2584.0,2583.9,0.34984144]
[1645996576802,1.0,2584.0,2583.7,1.29735932]
[1645996577102,0.25,2584.3,2583.9,0.463]
[1645996577300,0.25,2584.3,2584.0,0.463]
[1645996577501,0.25,2584.3,2584.1,0.463]
[1645996577709,0.25,2584.3,2584.1,1.41120635]
[1645996577903,1.02,2584.8,2584.2,0.463]
[1645996578101,0.25,2584.7,2584.2,0.463]
[1645996578502,0.25,2584.7,2584.1,1.41216635]
[1645996578704,0.02,2584.8,2584.2,0.378]
[1645996578906,0.02,2584.8,2584.4,0.378]
[1645996579153,0.02,2584.8,2584.5,0.791]
[1645996580061,1.0,2585.6,2584.8,0.02]
[1645996580062,0.75,2585.6,2584.8,0.02]
[1645996580266,0.01231875,2586.7,2584.8,0.02]
[1645996580267,0.1547,2586.6,2585.2,14.378]
[1645996580458,1.29617535,2586.7,2586.5,1.41434609]
[1645996581660,1.29617535,2586.7,2586.3,1.9339]
[1645996581859,1.0,2586.8,2586.3,2.9008466]
[1645996581860,1.29617535,2586.4,2586.3,2.9008466]
[1645996582059,1.0,2586.6,2586.3,2.9008466]
[1645996582260,1.0,2586.6,2586.3,1.7468466]
[1645996582461,2.29617535,2586.6,2586.3,1.7468466]
[1645996582668,0.6545,2587.4,2586.4,0.463]
[1645996582913,0.25,2587.5,2586.4,0.463]
[1645996582914,1.29617535,2586.7,2586.5,1.31471575]
[1645996583111,0.1546,2587.7,2586.6,0.463]
[1645996583112,0.35617535,2587.7,2586.6,0.463]
[1645996583309,0.60617535,2587.7,2586.6,0.75559997]
[1645996583708,1.60617535,2587.7,2586.6,0.75559997]
[1645996583910,3.1611,2589.4,2587.6,4.64382465]
[1645996584114,0.25,2588.9,2588.4,0.9661893]
[1645996584309,7.3,2590.0,2588.5,0.463]
[1645996584310,0.35617535,2589.2,2588.5,0.463]
[1645996584508,0.35617535,2589.0,2588.5,0.463]
[1645996584711,1.35617535,2588.8,2588.5,0.463]
[1645996585107,1.0,2588.6,2588.5,0.463]
[1645996585514,1.108,2588.7,2588.5,0.463]
[1645996585711,1.0,2588.7,2588.5,0.463]
[1645996586012,1.0,2588.9,2588.5,0.463]
[1645996586310,1.0,2588.9,2588.8,1.2163755]
[1645996586510,1.0,2588.9,2588.8,1.6793755]
[1645996587363,0.9028,2589.6,2588.8,1.81757547]
[1645996587558,0.9028,2589.6,2588.9,0.1542]
[1645996587759,0.6528,2589.6,2588.9,0.1542]
[1645996587960,0.6528,2589.6,2588.8,1.35457547]
[1645996587961,7.3,2590.7,2589.0,0.463]
[1645996588164,7.3,2590.7,2589.4,0.5]
[1645996588357,0.994,2590.4,2589.7,3.8621458]
[1645996588560,0.0387602,2590.7,2589.8,0.463]
[1645996589357,1.0,2590.2,2589.8,0.463]
[1645996589758,1.0,2590.2,2590.0,0.5]
[1645996590164,1.0,2590.1,2590.0,0.5]
[1645996590406,1.0387602,2590.1,2590.0,0.5]
[1645996591415,0.0387602,2590.1,2590.0,0.5]
[1645996591611,1.0387602,2590.1,2590.0,0.5]
[1645996592313,6.0387602,2590.1,2588.8,0.13819997]
[1645996592517,0.25,2589.7,2588.8,0.13819997]
[1645996592714,1.0,2589.2,2588.8,0.13819997]
[1645996592910,1.0,2589.2,2588.8,1.10435727]
[1645996593110,1.25,2589.2,2588.8,1.10435727]
[1645996593314,1.25,2589.2,2589.0,0.5]
[1645996593510,1.25,2589.2,2588.8,1.10435727]
[1645996593511,1.2887602,2589.2,2588.8,0.5]
[1645996593712,0.2887602,2589.2,2588.8,2.89505]
[1645996594553,0.2887602,2589.2,2588.8,3.89505]
[1645996594752,0.2887602,2589.2,2588.8,2.89505]
[1645996595760,0.2887602,2589.2,2589.0,0.96599]
[1645996595965,0.2887602,2589.2,2589.1,0.463]
[1645996596360,1.0,2589.7,2589.2,0.98779261]
[1645996596361,0.25,2589.6,2589.2,0.98779261]
[1645996596561,0.2887602,2589.6,2589.2,1.45079261]
[1645996596761,0.2887602,2589.6,2589.2,0.48477651]
[1645996597161,1.2887602,2589.6,2589.2,0.48477651]
[1645996597762,1.0,2589.4,2589.2,0.48477651]
[1645996598001,1.0,2589.3,2589.2,0.02177651]
[1645996598402,1.0,2589.3,2588.8,2.53344927]
[1645996598403,18.0,2589.3,2588.1,1.0]
[1645996598609,18.0,2589.3,2587.7,3.86414]
[1645996598610,16.5,2589.2,2587.7,3.86414]
[1645996598803,16.5,2589.2,2587.7,5.19682126]
[1645996598804,1.01536555,2588.7,2587.7,5.19682126]
[1645996599008,1.0,2588.7,2587.7,3.86414]
[1645996599308,0.25,2588.3,2587.6,1.96652]
[1645996599509,1.0,2587.9,2587.6,5.8313083]
[1645996599707,1.0,2587.8,2587.6,5.8313083]
[1645996599908,1.0,2587.8,2587.6,1.0]
[1645996600109,1.0,2587.7,2587.6,1.0]
[1645996600308,1.0,2587.7,2587.0,4.927613]
[1645996600507,1.0193801,2587.7,2587.0,4.877613]
[1645996600707,1.25,2587.5,2587.0,4.877613]
[1645996601113,1.25,2587.5,2587.0,3.8154]
[1645996601312,1.25,2587.5,2586.2,1.93346]
[1645996601313,5.0,2587.1,2585.7,4.73225928]
[1645996601516,0.01231964,2586.5,2585.9,3.5]
[1645996601763,0.0315633,2587.1,2585.8,0.96717]
[1645996601764,0.0193801,2587.1,2585.8,0.96717]
[1645996601956,0.0193801,2587.1,2584.6,5.0]
[1645996601957,0.25,2586.4,2585.6,0.463]
[1645996602159,0.25,2586.4,2585.8,1.34018628]
[1645996602358,0.25,2586.4,2586.3,1.9338873]
[1645996602558,0.2693801,2586.4,2586.3,1.9338873]
[1645996603158,0.2193801,2586.4,2586.3,1.9338873]
[1645996603359,0.2193801,2586.4,2586.3,1.7338873]
[1645996603764,0.2193801,2586.4,2586.3,5.0338873]
[1645996603765,0.0193801,2586.4,2586.3,5.0338873]
[1645996604160,0.0193801,2586.4,2586.3,6.4968873]
[1645996604359,0.0193801,2586.4,2586.3,6.8748873]
[1645996604559,1.25,2587.4,2586.3,9.2208873]
[1645996604761,0.00349046,2587.6,2586.8,0.9667356]
[1645996604959,1.00349046,2587.6,2586.8,0.9667356]
[1645996605609,1.00349046,2587.6,2587.1,1.07563174]
[1645996605811,1.00349046,2587.6,2586.3,3.6677173]
[1645996605812,5.628,2587.4,2586.3,3.6677173]
[1645996606011,5.628,2587.4,2585.2,3.8676546]
[1645996606012,5.378,2587.2,2585.6,1.0]
[1645996606211,15.16,2587.3,2585.7,4.4672366]
[1645996606212,12.038,2586.6,2585.7,4.4672366]
[1645996606515,12.038,2586.6,2584.3,0.463]
[1645996606516,12.038,2586.1,2584.3,0.463]
[1645996606719,1.06750762,2585.4,2584.6,0.00096]
[1645996606915,1.06750762,2585.4,2584.4,0.00096]
[1645996607115,1.0,2584.9,2584.1,0.00096]
[1645996607317,1.31750762,2585.4,2584.7,0.5]
[1645996607517,1.31750762,2585.4,2584.7,0.50096]
[1645996607518,1.06750762,2585.4,2584.7,0.50096]
[1645996607715,0.25,2585.2,2584.7,0.00096]
[1645996607914,0.25,2585.2,2585.0,0.5]
[1645996608514,0.1547,2585.1,2585.0,0.5]
[1645996608915,1.1547,2585.1,2585.0,0.5]
[1645996609160,1.1547,2585.1,2583.7,0.96893]
[1645996609161,17.8147,2585.1,2583.7,0.96893]
[1645996609363,17.8147,2585.1,2583.4,0.00096]
[1645996609364,5.0,2584.4,2583.4,0.00096]
[1645996609561,5.0,2584.4,2583.0,0.00096]
[1645996609562,1.0,2583.8,2583.0,0.00096]
[1645996609764,1.0,2583.5,2582.8,3.50096]
[1645996609963,0.1547,2584.3,2583.5,0.01222605]
[1645996610362,0.1547,2584.3,2583.7,0.9679828]
[1645996610363,0.25,2584.0,2583.7,0.9679828]
[1645996611263,0.25,2584.0,2583.7,1.9357628]
[1645996611462,0.25,2584.0,2583.7,0.9679828]
[1645996612563,0.25,2584.0,2583.5,1.94816195]
[1645996612763,0.25,2584.0,2583.8,0.9679675]
[1645996613609,1.0,2584.5,2583.5,0.01222605]
[1645996613810,1.0,2584.0,2583.1,5.31318605]
[1645996614008,1.0,2583.8,2583.2,3.5]
[1645996614213,1.0,2583.8,2583.2,0.463]
[1645996614506,0.00349469,2583.9,2583.8,0.00154764]
[1645996614707,0.00349469,2583.9,2583.8,3.87271934]
[1645996614907,0.00349469,2583.9,2583.8,4.92821862]
[1645996615108,0.25,2584.3,2583.8,4.92821862]
[1645996615309,0.25,2584.3,2583.8,6.39121862]
[1645996615511,0.25,2584.3,2583.8,5.92821862]
[1645996615709,1.0,2584.2,2583.8,5.92821862]
[1645996616108,0.25,2584.3,2583.9,1.7355412]
[1645996616309,0.25,2584.8,2584.7,0.00116723]
[1645996616649,0.5,2585.2,2584.7,0.00116723]
[1645996616857,1.0,2584.8,2584.7,0.00116723]
[1645996617357,2.7374,2585.5,2584.7,0.00116723]
[1645996617555,0.4047,2585.6,2584.7,0.00116723]
[1645996617754,0.13819997,2586.0,2584.7,0.46416723]
[1645996617954,0.774,2585.6,2584.7,0.46416723]
[1645996618155,11.66,2585.6,2585.0,1.33837499]
[1645996618355,0.1547,2585.8,2585.0,1.33837499]
[1645996618559,1.0,2585.3,2585.0,2.30591979]
[1645996618756,1.0,2585.7,2585.0,2.30591979]
[1645996619360,1.0,2585.7,2585.6,1.33716479]
[1645996619557,1.378,2585.7,2585.0,0.9675448]
[1645996619857,1.0,2585.9,2585.1,0.9675012]
[1645996620506,1.0,2585.9,2584.9,3.77591]
[1645996620700,1.0,2585.9,2585.0,0.1545]
[1645996620902,1.0,2585.7,2585.0,0.1545]
[1645996621100,1.0,2585.7,2585.6,1.23887233]
[1645996621301,1.0,2585.8,2585.6,0.08487233]
[1645996621502,1.13819997,2586.0,2585.6,0.08487233]
[1645996621709,1.13819997,2586.0,2584.7,0.00116723]
[1645996621710,0.378,2585.8,2584.7,0.00116723]
[1645996621914,0.378,2585.6,2584.7,0.00116723]
[1645996622106,11.66,2585.7,2584.7,0.00116723]
[1645996622107,0.01214518,2585.2,2584.7,0.00116723]
[1645996622306,1.378,2585.3,2584.7,0.00116723]
[1645996622307,1.5327,2585.3,2584.7,0.00116723]
[1645996622510,1.0,2584.8,2584.7,0.00116723]
[1645996622706,1.0,2584.8,2584.7,1.15424975]
[1645996622907,1.0,2584.8,2584.7,0.00116723]
[1645996623910,13.038,2584.8,2584.7,0.00116723]
[1645996624155,1.378,2584.8,2584.7,0.00116723]
[1645996624854,1.0,2584.8,2584.7,0.00116723]
[1645996625859,0.378,2585.1,2584.7,0.00116723]
[1645996626060,1.0,2585.0,2584.7,0.00116723]
[1645996626358,1.0,2585.0,2584.9,0.5]
[1645996626658,5.7584,2585.7,2584.9,0.5]
[1645996626863,0.00316382,2585.8,2584.9,0.5]
[1645996627066,0.00316382,2585.8,2584.3,1.74555723]
[1645996627270,1.00316382,2585.8,2584.4,0.463]
[1645996627461,1.00316382,2585.8,2584.4,2.39778]
[1645996627661,1.00316382,2585.8,2585.3,1.28834449]
[1645996627662,0.25,2585.5,2585.3,1.28834449]
[1645996628498,0.24695159,2585.5,2585.3,1.28834449]
[1645996628700,1.00316382,2585.8,2585.3,1.28834449]
[1645996628900,0.25,2586.3,2585.3,1.28834449]
[1645996628901,0.25,2585.7,2585.4,0.841]
[1645996629102,0.25,2586.5,2585.4,5.3081629]
[1645996629298,0.25,2587.1,2585.4,4.341]
[1645996629498,1.774,2586.6,2585.8,0.5]
[1645996629698,0.1545,2587.0,2585.7,0.463]
[1645996629906,13.31582826,2586.9,2586.0,1.93412]
[1645996630099,1.0,2586.5,2585.8,2.4342914]
[1645996630302,1.0,2586.3,2585.8,2.4342914]
[1645996630700,0.378,2586.9,2586.1,1.9342907]
[1645996630701,1.0,2586.5,2586.1,1.9342907]
[1645996630900,1.0,2586.6,2586.1,1.9342907]
[1645996631298,1.0,2586.7,2586.1,1.9342907]
[1645996631500,0.378,2587.0,2586.2,1.04112275]
[1645996631501,1.0,2586.8,2586.2,1.04112275]
[1645996631955,1.0,2586.9,2586.2,1.04112275]
[1645996632563,1.0,2586.9,2586.8,1.22899103]
[1645996632757,0.5,2587.2,2586.8,1.22899103]
[1645996632958,1.0,2586.9,2586.8,1.22899103]
[1645996633159,1.0,2586.9,2585.5,1.35116243]
[1645996633160,16.5,2586.8,2585.5,1.35116243]
[1645996633363,0.01221191,2585.6,2585.2,2.9014885]
[1645996633664,0.378,2585.1,2584.7,0.01524259]
[1645996633861,0.378,2585.1,2584.8,7.722]
[1645996633862,0.1673549,2585.0,2584.8,7.722]
[1645996634160,0.1547,2585.0,2584.8,7.722]
[1645996634358,0.25,2585.2,2584.8,7.722]
[1645996634558,1.0,2584.9,2584.8,7.722]
[1645996635804,1.378,2584.9,2584.8,7.722]
[1645996636404,13.038,2584.9,2584.8,5.99528989]
[1645996636605,1.378,2584.9,2584.8,5.99528989]
[1645996636808,1.0,2584.9,2584.8,5.99528989]
[1645996637011,1.5,2585.0,2584.8,5.99528989]
[1645996637208,0.5,2585.0,2584.8,5.99528989]
[1645996638010,13.538,2585.0,2584.8,8.989e-05]
[1645996638209,12.038,2584.8,2583.4,0.77193354]
[1645996638411,12.288,2584.4,2582.6,0.5936259]
[1645996638610,12.288,2584.4,2582.7,0.77207141]
[1645996638611,0.378,2584.0,2582.7,0.77207141]
[1645996638812,0.25,2583.7,2582.7,0.77207141]
[1645996639009,0.25,2583.7,2583.3,1.09652128]
[1645996639010,1.0,2583.5,2583.3,1.09652128]
[1645996639259,0.25,2583.7,2583.3,1.09652128]
[1645996639260,1.0,2583.6,2583.3,1.09652128]
[1645996639462,0.25,2583.7,2583.3,1.09652128]
[1645996640258,0.25,2583.7,2583.3,2.06465128]
[1645996640661,0.25,2583.7,2583.3,2.21935128]
[1645996641362,0.25,2583.7,2583.3,1.25122128]
[1645996641561,0.25,2583.7,2582.9,0.15566]
[1645996641963,1.25,2583.7,2583.1,0.96821]
[1645996642161,1.25,2583.7,2583.2,0.9305116]
[1645996642162,0.25,2583.7,2583.2,0.9305116]
[1645996642362,0.25,2583.7,2583.3,0.7758116]
[1645996642665,0.25,2583.7,2583.4,0.1547]
[1645996643203,0.25,2583.7,2583.5,2.10360323]
[1645996643398,0.25,2583.7,2583.6,0.77721229]
[1645996643799,0.25,2584.0,2583.7,0.9678244]
[1645996643999,1.0,2584.5,2583.8,1.30991229]
[1645996644200,0.75,2584.7,2583.9,1.15521229]
[1645996644399,0.5,2584.7,2584.0,0.93255776]
[1645996644600,4.7,2585.2,2585.0,99.5]
[1645996644900,3.7,2585.2,2585.0,99.5]
[1645996645301,1.0,2585.1,2585.0,99.5]
[1645996645705,1.0,2585.3,2585.0,100.74329311]
[1645996646102,0.1547,2585.8,2585.0,100.74329311]
[1645996646103,0.5,2585.2,2585.0,100.74329311]
[1645996646957,1.0,2585.1,2585.0,99.5]
[1645996647359,0.5,2585.2,2585.0,99.5]
[1645996647762,0.5,2585.2,2583.9,0.00096]
[1645996647763,5.0,2585.1,2583.9,0.00096]
[1645996647962,5.01292723,2584.0,2583.5,0.0142526]
[1645996648267,11.66,2583.5,2582.7,1.43579934]
[1645996648466,11.66,2583.5,2582.1,0.9595952]
[1645996648467,11.66,2582.7,2582.5,0.96025264]
[1645996648664,11.66,2582.7,2582.3,1.4980167]
[1645996648665,9.06964772,2582.5,2582.3,1.4980167]
[1645996648961,0.1547,2582.4,2582.3,0.75278376]
[1645996649162,0.1547,2582.4,2582.3,1.45571657]
[1645996649163,1.0,2582.4,2582.3,1.45571657]
[1645996649559,1.0,2582.4,2582.3,0.30171657]
[1645996649759,1.0,2582.4,2582.1,0.007]
[1645996650406,1.0,2582.4,2582.2,1.33939687]
[1645996652312,0.25,2582.8,2582.2,1.33939687]
[1645996652713,0.25,2582.8,2582.4,0.96844]
[1645996653417,0.25,2582.8,2582.7,1.30660484]
[1645996653418,0.225,2582.8,2582.7,1.30660484]
[1645996653812,1.0,2583.3,2582.7,1.30660484]
[1645996654015,1.25,2583.5,2582.8,0.463]
[1645996654261,3.5,2584.8,2582.8,19.541]
[1645996654464,0.378,2584.5,2582.8,22.66273538]
[1645996654661,0.378,2584.5,2584.1,1.30604846]
[1645996654860,0.25,2584.8,2584.1,1.30604846]
[1645996655064,0.25,2584.8,2583.8,2.39865]
[1645996655065,0.132,2584.6,2583.8,2.39865]
[1645996655261,0.01215119,2583.9,2583.2,0.96821]
[1645996655461,0.01215119,2583.9,2583.2,0.00096]
[1645996655762,0.01215119,2583.9,2582.4,3.4369]
[1645996655763,0.378,2583.8,2582.3,0.00113991]
[1645996655967,1.378,2583.5,2582.6,1.93667]
[1645996656163,13.038,2583.5,2582.6,1.93667]
[1645996656362,0.1547,2583.8,2582.3,0.00113991]
[1645996656363,0.378,2583.3,2583.1,0.5]
[1645996656561,0.378,2583.3,2582.3,2.90648091]
[1645996656562,0.17406616,2582.9,2582.3,2.90648091]
[1645996657166,0.17406616,2582.9,2582.4,0.9683945]
[1645996657564,0.17406616,2582.9,2582.6,0.96845]
[1645996658010,0.17406616,2582.9,2582.6,1.43807017]
[1645996658909,0.12406616,2582.9,2582.6,1.43807017]
[1645996659317,0.10859269,2582.9,2582.7,0.96835]
[1645996659615,0.10859269,2582.9,2582.4,0.9683945]
[1645996659616,0.48659269,2582.9,2582.5,0.00113861]
[1645996659816,13.038,2582.8,2582.5,0.00113861]
[1645996660017,12.66,2582.6,2582.5,0.00113861]
[1645996660520,12.7647,2582.6,2582.5,0.00113861]
[1645996660721,17.27761842,2582.6,2582.5,0.00113861]
[1645996661022,0.378,2582.3,2581.4,0.00096]
[1645996661224,11.66,2582.1,2581.0,0.0180146]
[1645996661421,11.66,2582.1,2580.8,1.93806]
[1645996661422,12.66,2582.0,2580.8,1.93806]
[1645996661667,1.0,2581.5,2580.6,0.98258286]
[1645996661873,1.0,2581.5,2580.9,0.9690337]
[1645996662071,1.0,2581.2,2580.9,0.9690337]
[1645996662271,0.01293353,2582.0,2580.6,1.44558286]
[1645996662470,1.0,2581.8,2581.0,1.93782]
[1645996662671,1.0,2581.8,2580.7,0.463]
[1645996662869,1.0,2581.6,2580.7,0.463]
[1645996663070,1.0,2581.6,2580.8,0.969057]
[1645996663570,1.0,2582.0,2580.8,10.43804]
[1645996663571,2.0,2582.0,2580.8,10.43804]
[1645996663778,1.0,2582.0,2581.0,1.20966283]
[1645996663972,1.0,2582.1,2581.2,0.96877]
[1645996664172,1.0,2582.7,2580.6,0.98258286]
[1645996664173,1.0,2581.5,2580.6,0.98258286]
[1645996664570,1.0,2581.3,2580.7,0.00096]
[1645996664770,1.0,2581.0,2580.6,0.98258286]
[1645996664970,1.0,2581.0,2580.8,1.16767113]
[1645996664971,0.25,2580.9,2580.8,1.16767113]
[1645996665173,0.15,2580.9,2580.6,0.98258286]
[1645996666009,1.15,2580.9,2580.6,0.98258286]
[1645996666210,0.15,2580.9,2580.7,1.20928737]
[1645996666416,0.1,2581.0,2580.7,1.20928737]
[1645996666609,0.1,2581.0,2580.7,1.21024737]
[1645996666809,0.1,2581.0,2580.7,2.17836737]
[1645996667412,0.1,2581.0,2580.7,1.20928737]
[1645996668313,1.0,2581.1,2580.7,1.20928737]
[1645996668513,1.0,2581.6,2580.8,0.00096]
[1645996668714,1.0,2581.6,2580.6,0.93258286]
[1645996668715,1.0,2581.3,2580.6,0.93258286]
[1645996668916,1.0,2581.3,2580.7,0.00096]
[1645996669162,0.25,2581.7,2580.6,0.93258286]
[1645996669163,0.5,2580.9,2580.6,0.93258286]
[1645996669364,0.00570896,2580.8,2580.7,0.97017756]
[1645996669761,0.00570896,2580.8,2580.7,1.12507756]
[1645996669965,0.00570896,2580.8,2580.7,0.15590756]
[1645996670165,0.00570896,2580.8,2580.7,1.49891948]
[1645996670365,0.00570896,2580.8,2580.7,0.00100756]
[1645996670765,8.96e-06,2580.9,2580.7,0.00100756]
[1645996670965,8.96e-06,2581.0,2580.7,0.00100756]
[1645996671167,0.494,2581.2,2580.7,0.00100756]
[1645996671366,0.494,2581.2,2580.7,0.00196756]
[1645996671569,13.288,2581.6,2580.7,0.00100756]
[1645996671771,1.0,2581.2,2580.7,0.00196756]
[1645996671971,1.0,2581.2,2581.0,1.26115995]
[1645996672171,1.628,2581.6,2581.0,0.32660953]
[1645996672172,1.0,2581.4,2581.0,0.32660953]
[1645996672373,1.0,2581.2,2581.0,0.32660953]
[1645996672771,1.0,2581.3,2581.0,0.32660953]
[1645996673003,0.7937,2581.3,2581.0,0.32660953]
[1645996673305,0.1549,2582.0,2581.1,0.841]
[1645996673502,0.206,2581.9,2581.2,0.1549]
[1645996673699,0.25,2582.1,2581.3,0.463]
[1645996673902,0.206,2582.4,2581.3,0.84196]
[1645996674106,0.25,2582.7,2582.4,0.96855]
[1645996674302,0.26349269,2582.9,2582.5,0.378]
[1645996674303,0.81869269,2582.9,2582.5,0.378]
[1645996674503,0.66379269,2582.9,2582.6,0.463]
[1645996674700,0.66379269,2582.9,2582.7,0.463]
[1645996674902,0.66379269,2582.9,2582.8,0.463]
[1645996675301,9.269e-05,2582.9,2582.8,1.77560198]
[1645996675500,9.269e-05,2582.9,2582.8,0.6177]
[1645996675703,9.269e-05,2582.9,2582.8,4.1177]
[1645996675906,0.25,2583.6,2582.8,4.1177]
[1645996675907,0.25,2583.6,2582.8,10.08586]
[1645996676106,2.0,2584.8,2583.4,5.0]
[1645996676306,1.0,2585.0,2583.7,5.0]
[1645996676507,1.0,2584.9,2583.8,0.6177]
[1645996676767,1.1547,2585.2,2583.8,0.6177]
[1645996676961,0.95,2585.2,2583.8,0.6177]
[1645996677363,0.95,2585.2,2584.3,0.5]
[1645996677563,0.95,2585.2,2583.9,1.23212734]
[1645996677564,0.20150686,2584.0,2583.9,1.23212734]
[1645996677763,0.1547,2585.2,2583.9,0.841]
[1645996677963,1.0,2585.2,2584.2,1.34561]
[1645996678163,0.25,2585.3,2584.3,0.9957]
[1645996678363,1.0,2584.4,2584.3,0.9957]
[1645996678563,0.25,2585.3,2584.4,10.0]
[1645996678764,1.0,2585.5,2584.9,2.07224054]
[1645996678972,1.0,2585.0,2584.9,2.07224054]
[1645996679563,1.0,2585.0,2584.9,0.9675826]
[1645996680401,1.0,2585.3,2584.8,0.463]
[1645996680602,1.0,2584.9,2584.8,0.463]
[1645996680802,1.0,2584.9,2584.0,1.93518]
[1645996680803,13.038,2585.0,2584.2,0.463]
[1645996681003,13.038,2585.0,2583.6,1.93547]
[1645996681202,0.378,2584.8,2583.7,0.463]
[1645996681402,1.0,2584.7,2583.9,1.9356437]
[1645996681603,1.0,2584.7,2583.9,2.3986437]
[1645996681808,0.1547,2585.2,2582.7,3.8716097]
[1645996681809,1.25,2584.5,2582.7,3.8716097]
[1645996682016,6.0,2584.5,2582.7,3.8716097]
[1645996682208,0.25,2583.7,2582.7,3.8716097]
[1645996682607,1.0,2583.3,2582.7,4.0263097]
[1645996682809,0.25,2583.2,2582.9,0.96828]
[1645996683010,0.25,2583.2,2582.9,1.12298]
[1645996684255,0.25,2583.2,2582.9,0.96828]
[1645996684454,0.25,2583.2,2582.7,0.96843]
[1645996685055,0.25,2583.2,2582.6,0.27743]
[1645996685857,0.25,2583.2,2582.5,3.8735384]
[1645996685858,1.0,2582.8,2582.5,1.93688]
[1645996686057,12.66,2582.8,2582.2,0.00096]
[1645996686261,0.378,2583.1,2581.9,0.00096]
[1645996686262,12.288,2582.6,2581.9,0.00096]
[1645996686460,12.288,2582.6,2581.6,0.00096]
[1645996686461,12.038,2582.4,2581.6,0.00096]
[1645996686657,0.378,2582.2,2581.3,0.00096]
[1645996686860,1.0,2581.7,2581.1,0.00096]
[1645996687063,1.0,2581.7,2581.0,0.9689666]
[1645996687266,0.25,2581.9,2581.0,6.4319666]
[1645996687267,1.0,2581.6,2581.0,6.4319666]
[1645996687465,0.25,2581.9,2581.0,0.463]
[1645996687663,0.25,2581.9,2581.2,0.378]
[1645996687916,0.25,2581.9,2581.3,0.6179]
[1645996688117,0.25,2581.9,2581.7,1.3565049]